fUST/lending_fUST_20260106
["ID","MTS","AMOUNT","RATE_DAILY","PERIOD"]
[400522940,1767696639006,-250.0,0.00012826,2]
[400522941,1767696639016,-291.78649388,0.00012877,2]
[400522942,1767696639026,-195.178593,0.00012877,2]
[400522943,1767696639035,-500.0,0.00012877,2]
[400522944,1767696639044,-500.0,0.00012915,2]
[400522945,1767696639053,-210.15,0.0001292,2]
[400522946,1767696639062,-325.87830217,0.0001297,2]
[400522947,1767696639072,-151.0,0.00013,2]
[400522948,1767696639082,-500.0,0.00013014,2]
[400522949,1767696639091,-381.88170042,0.00013052,2]
[400522950,1767696639100,-300.0,0.00013052,2]
[400522951,1767696639111,-300.0,0.00013052,2]
[400522952,1767696639120,-300.0,0.00013052,2]
[400522953,1767696639129,-300.0,0.00013052,2]
[400522954,1767696639139,-300.0,0.00013052,2]
[400522955,1767696639148,-300.0,0.00013052,2]
[400522956,1767696639158,-300.0,0.00013052,2]
[400522957,1767696639168,-300.0,0.00013052,2]
[400522958,1767696639177,-300.0,0.00013052,2]
[400522959,1767696639187,-300.0,0.00013052,2]
[400522960,1767696639196,-300.0,0.00013052,2]
[400522961,1767696639206,-300.0,0.00013052,2]
[400522962,1767696639216,-300.0,0.00013052,2]
[400522963,1767696639225,-300.0,0.00013052,2]
[400522964,1767696639235,-300.0,0.00013052,2]
[400522965,1767696639244,-15000.0,0.000131,2]
[400522966,1767696639254,-500.0,0.00013151,2]
[400522967,1767696639264,-151.0,0.000132,2]
[400522968,1767696639274,-500.0,0.00013273,2]
[400522969,1767696639283,-500.0,0.00013273,2]
[400522970,1767696639295,-500.0,0.00013273,2]
[400522971,1767696639305,-500.0,0.00013288,2]
[400522972,1767696639315,-600.0,0.00013359,2]
[400522973,1767696639325,-151.0,0.000134,2]
[400522974,1767696639336,-420.0,0.00013417,2]
[400522975,1767696639508,-420.0,0.00013417,2]
[400522976,1767696639518,-500.0,0.00013425,2]
[400522977,1767696639528,-392.78,0.00013429,2]
[400522978,1767696639537,-451.25145523,0.00013562,2]
[400522979,1767696639548,-11367.48284974,0.00013599,2]
[400522980,1767696639559,-300.0,0.00013673,2]
[400522981,1767696639570,-200.0,0.00013698,2]
[400522982,1767696639580,-500.0,0.00013698,2]
[400522983,1767696639591,-500.0,0.00013698,2]
[400522984,1767696639602,-188.11386458,0.00013699,2]
[400522985,1767696639612,-885.4942762,0.00013699,2]
[400522986,1767696639622,-1263.483109,0.00013699,2]
[400522987,1767696639631,-1000.0,0.00013699,2]
[400522988,1767696639646,-338.10821472,0.00013699,2]
[400522989,1767696639657,-502.2601968,0.00013699,2]
[400522990,1767696639668,-500.0,0.00013699,2]
[400522991,1767696639678,-504.92626039,0.00013699,2]
[400522992,1767696639688,-501.0386878,0.00013699,2]
[400522993,1767696639697,-500.0,0.00013699,2]
[400522994,1767696639707,-443.89072638,0.00013699,2]
[400522995,1767696639716,-501.00450759,0.00013699,2]
[400522996,1767696639727,-505.14600849,0.00013699,2]
[400522997,1767696639737,-634.09365022,0.00013699,2]
[400522998,1767696639746,-500.54517436,0.00013699,2]
[400522999,1767696639756,-500.81877837,0.00013699,2]
[400523000,1767696639765,-156.236454,0.00013699,2]
[400523001,1767696639776,-807.20442141,0.00013699,2]
[400523002,1767696639785,-807.20442141,0.00013699,2]
[400523003,1767696639794,-807.20442141,0.00013699,2]
[400523004,1767696639804,-807.20442141,0.00013699,2]
[400523005,1767696639814,-807.20442141,0.00013699,2]
[400523006,1767696639823,-151.0,0.00013699,2]
[400523007,1767696639834,-807.20442141,0.00013699,2]
[400523008,1767696639843,-807.20442141,0.00013699,2]
[400523009,1767696639853,-807.20442141,0.00013699,2]
[400523010,1767696639863,-807.20442141,0.00013699,2]
[400523011,1767696639875,-807.20442141,0.00013699,2]
[400523012,1767696639885,-807.20442141,0.00013699,2]
[400523013,1767696639895,-807.20442141,0.00013699,2]
[400523014,1767696639904,-807.20442141,0.00013699,2]
[400523015,1767696639914,-807.20442141,0.00013699,2]
[400523016,1767696639923,-807.20442141,0.00013699,2]
[400523017,1767696639933,-807.20442141,0.00013699,2]
[400523018,1767696639943,-807.20442141,0.00013699,2]
[400523019,1767696639952,-807.20442141,0.00013699,2]
[400523020,1767696639962,-807.20442141,0.00013699,2]
[400523021,1767696639971,-807.20442141,0.00013699,2]
[400523022,1767696639981,-807.20442141,0.00013699,2]
[400523023,1767696639991,-807.20442141,0.00013699,2]
[400523024,1767696640000,-807.20442141,0.00013699,2]
[400523026,1767696640010,-807.20442141,0.00013699,2]
[400523027,1767696640019,-807.20442141,0.00013699,2]
[400523028,1767696640029,-807.20442141,0.00013699,2]
[400523029,1767696640039,-807.20442141,0.00013699,2]
[400523030,1767696640050,-807.20442141,0.00013699,2]
[400523031,1767696640060,-807.20442141,0.00013699,2]
[400523032,1767696640070,-807.20442141,0.00013699,2]
[400523033,1767696640080,-807.20442141,0.00013699,2]
[400523034,1767696640090,-807.20442141,0.00013699,2]
[400523035,1767696640100,-807.20442141,0.00013699,2]
[400523036,1767696640110,-807.20442141,0.00013699,2]
[400523037,1767696640120,-807.20442141,0.00013699,2]
[400523038,1767696640129,-807.20442141,0.00013699,2]
[400523039,1767696640138,-807.20442141,0.00013699,2]
[400523040,1767696640150,-807.20442141,0.00013699,2]
[400523041,1767696640160,-807.20442141,0.00013699,2]
[400523043,1767696640170,-807.20442141,0.00013699,2]
[400523045,1767696640179,-807.20442141,0.00013699,2]
[400523047,1767696640189,-807.20442141,0.00013699,2]
[400523048,1767696640198,-807.20442141,0.00013699,2]
[400523049,1767696640208,-807.20442141,0.00013699,2]
[400523051,1767696640218,-807.20442141,0.00013699,2]
[400523052,1767696640227,-807.20442141,0.00013699,2]
[400523053,1767696640237,-807.20442141,0.00013699,2]
[400523054,1767696640247,-807.20442141,0.00013699,2]
[400523055,1767696640257,-807.20442141,0.00013699,2]
[400523056,1767696640267,-807.20442141,0.00013699,2]
[400523057,1767696640276,-807.20442141,0.00013699,2]
[400523058,1767696640286,-807.20442141,0.00013699,2]
[400523059,1767696640295,-807.20442141,0.00013699,2]
[400523060,1767696640304,-151.0,0.00013699,2]
[400523061,1767696640314,-640.67726673,0.00013699,2]
[400523062,1767696640340,-166.52715468,0.00013699,2]
[400523063,1767696640349,-807.20442141,0.00013699,2]
[400523064,1767696640359,-807.20442141,0.00013699,2]
[400523065,1767696640368,-151.0,0.000137,2]
[400523066,1767696640378,-252.18,0.00013781,2]
[400523067,1767696640387,-864.49212635,0.00013821,2]
[400523068,1767696640396,-500.0,0.00013821,2]
[400523069,1767696640406,-3027.0,0.0001386,2]
[400523070,1767696640416,-284.30459364,0.00013893,2]
[400523071,1767696640426,-151.0,0.000139,2]
[400523072,1767696640435,-500.0,0.00014,2]
[400523073,1767696640444,-151.0,0.000141,2]
[400523074,1767696640454,-1235.5288191,0.00014117,2]
[400523075,1767696640463,-2044.2328441,0.00014175,2]
[400523076,1767696640473,-1097.11642205,0.00014175,2]
[400523077,1767696640482,-600.0,0.00014221,2]
[400523078,1767696640492,-1000.0,0.00014247,2]
[400523079,1767696640501,-1000.0,0.00014247,2]
[400523080,1767696640511,-151.0,0.000143,2]
[400523081,1767696640520,-1439.5427242,0.00014364,2]
[400523082,1767696640529,-1041.66666667,0.00014463,2]
[400523083,1767696640539,-151.0,0.000146,2]
[400523084,1767696640548,-294.21,0.00014643,2]
[400523085,1767696640557,-720.0,0.00014695,2]
[400523086,1767696640567,-587.0,0.00014726,2]
[400523087,1767696640576,-167.0,0.00014726,2]
[400523088,1767696640585,-900.0,0.00014768,2]
[400523089,1767696640595,-1500.0,0.00014795,2]
[400523090,1767696640604,-1500.0,0.00014795,2]
[400523091,1767696640613,-151.0,0.000148,2]
[400523092,1767696640624,-1047.97067215,0.00014882,2]
[400523093,1767696640636,-3665.11543935,0.00014882,2]
[400523094,1767696640647,-1024.6242914,0.00014882,2]
[400523095,1767696640658,-12520.46707575,0.00014882,2]
[400523096,1767696640670,-512.618,0.00014882,2]
[400523097,1767696640680,-81229.20452135,0.00014882,2]
[400523098,1767696640690,-151.0,0.000149,2]
[400523099,1767696640699,-453.98854619,0.000149,2]
[400523100,1767696640708,-453.98854619,0.000149,2]
[400523101,1767696640718,-453.98854619,0.000149,2]
[400523102,1767696640727,-375.58855166,0.0001497,2]
[400523103,1767696640736,-2991.34926615,0.00014973,2]
[400523104,1767696640746,-122648.25265161,0.00015,2]
[400523105,1767696640755,-151.0,0.00015,2]
[400523106,1767696640764,-151.0,0.00015,2]
[400523107,1767696640773,-1000.0,0.00015,2]
[400523108,1767696640782,-154.522852,0.00015,2]
[400523109,1767696640791,-154.522852,0.00015,2]
[400523110,1767696640800,-154.522852,0.00015,2]
[400523111,1767696640809,-154.522852,0.00015,2]
[400523112,1767696640819,-587.189715,0.00015,2]
[400523113,1767696640828,-587.189715,0.00015,2]
[400523114,1767696640837,-587.189715,0.00015,2]
[400523115,1767696640846,-587.189715,0.00015,2]
[400523116,1767696640856,-151.0,0.00015,2]
[400523117,1767696640866,-151.0,0.00015,2]
[400523118,1767696640879,-153806.80053778,0.0001501,2]
[400523119,1767696640889,-476.257527,0.00015068,2]
[400523120,1767696640900,-294.61635866,0.00015068,2]
[400523121,1767696640911,-1200.0,0.00015316,2]
[400523122,1767696640921,-505.12105821,0.00015342,2]
[400523123,1767696640931,-2000.0,0.00015342,2]
[400523124,1767696640941,-3370.202645,0.00015357,2]
[400523125,1767696640950,-1235.5288191,0.00015438,2]
[400523126,1767696640959,-7331.3081278,0.0001546,2]
[400523127,1767696640971,-336.24,0.00015504,2]
[400523128,1767696640981,-1500.0,0.00015864,2]
[400523129,1767696640990,-2500.0,0.0001589,2]
[400523130,1767696641000,-751.9938559,0.0001593,2]
[400523131,1767696641009,-1439.5427242,0.00015932,2]
[400523132,1767696641021,-156.40516024,0.00016,2]
[400523133,1767696641030,-1097.32284948,0.00016,2]
[400523134,1767696641039,-1635.8359566,0.00016056,2]
[400523135,1767696641048,-823.0,0.00016162,2]
[400523136,1767696641057,-864.0,0.00016164,2]
[400523137,1767696641067,-11367.48284966,0.00016188,2]
[400523138,1767696641077,-716.97254675,0.0001634,2]
[400523139,1767696641086,-3938.4656882,0.00016346,5]
[400523140,1767696641095,-378.27,0.00016365,2]
[400523141,1767696641104,-300.0,0.00016412,2]
[400523142,1767696641113,-385.2,0.00016438,2]
[400523143,1767696641124,-151.0,0.00016438,2]
[400523144,1767696641134,-154.81060157,0.00016438,2]
[400523145,1767696641146,-151.0,0.00016438,2]
[400523146,1767696641156,-151.0,0.00016438,2]
[400523147,1767696641166,-164.05644949,0.00016438,2]
[400523148,1767696641175,-3000.0,0.00016438,2]
[400523149,1767696641185,-183.81,0.0001644,2]
[400523150,1767696641194,-200.0,0.00016473,2]
[400523151,1767696641204,-1081.20555985,0.00016608,2]
[400523152,1767696641214,-1235.5288191,0.00016758,2]
[400523153,1767696641223,-385.2,0.00016762,2]
[400523154,1767696641233,-170.73155875,0.00016768,15]
[400523155,1767696641242,-425.29880114,0.0001697,2]
[400523156,1767696641251,-3500.0,0.00016986,2]
[400523157,1767696641261,-50209.94471073,0.00017,2]
[400523158,1767696641271,-385.2,0.00017086,2]
[400523159,1767696641281,-170.73155875,0.00017195,17]
[400523160,1767696641293,-420.3,0.00017227,2]
[400523161,1767696641302,-385.2,0.00017409,2]
[400523162,1767696641311,-1439.5427242,0.00017499,2]
[400523163,1767696641321,-1508.75476455,0.00017534,2]
[400523164,1767696641330,-170.73155875,0.00017623,19]
[400523165,1767696641339,-4885.58211025,0.0001772,7]
[400523166,1767696641348,-385.2,0.00017733,2]
[400523167,1767696641358,-1152.0,0.00017738,2]
[400523168,1767696641368,-250.34730886,0.00017747,2]
[400523169,1767696641377,-1000.0,0.00017781,2]
[400523170,1767696641387,-153.361456,0.00017781,2]
[400523171,1767696641396,-200.16475344,0.00017842,2]
[400523172,1767696641405,-262.45871558,0.00017869,2]
[400523173,1767696641415,-8022.11455289,0.00017869,2]
[400523174,1767696641424,-151.0,0.00017967,2]
[400523175,1767696641433,-151.0,0.00017967,2]
[400523176,1767696641443,-151.0,0.00017967,2]
[400523177,1767696641452,-151.0,0.00017967,2]
[400523178,1767696641463,-155175.09586345,0.00017998,2]
[400523179,1767696641474,-154.522852,0.00017998,2]
[400523180,1767696641484,-154.522852,0.00017998,2]
[400523181,1767696641494,-154.522852,0.00017998,2]
[400523182,1767696641503,-154.522852,0.00017998,2]
[400523183,1767696641512,-587.189715,0.00017998,2]
[400523184,1767696641522,-587.189715,0.00017998,2]
[400523185,1767696641532,-587.189715,0.00017998,2]
[400523186,1767696641541,-587.189715,0.00017998,2]
[400523187,1767696641550,-151.0,0.00017998,2]
[400523188,1767696641560,-151.0,0.00017998,2]
[400523189,1767696641571,-89639.64708555,0.00018,2]
[400523190,1767696641582,-3555.43047783,0.00018044,2]
[400523191,1767696641594,-170.73155875,0.00018051,21]
[400523192,1767696641603,-385.2,0.00018057,2]
[400523193,1767696641613,-2929.49305762,0.00018082,3]
[400523194,1767696641625,-4455.73876402,0.00018082,3]
[400523195,1767696641636,-2831.46607915,0.00018082,3]
[400523196,1767696641714,-151.0,0.00013699,2]
[400523197,1767696641724,-151.0,0.00015,2]
[400523198,1767696641733,-151.0,0.00017998,2]
[400523199,1767696641742,-447.0,0.00018082,3]
[400523200,1767696641754,-1000.0,0.00018082,3]
[400523201,1767696641769,-10489.01100002,0.00018082,3]
[400523202,1767696641780,-5187.92312238,0.00018082,3]
[400523203,1767696641791,-176.44882119,0.00018082,3]
[400523204,1767696641801,-900.0,0.00018356,7]
[400523205,1767696641810,-385.2,0.00018381,2]
[400523206,1767696641819,-170.73155875,0.00018478,23]
[400523207,1767696641829,-476.257527,0.00018493,2]
[400523208,1767696641839,-1064.41585009,0.000185,3]
[400523209,1767696641880,-2132.5250863,0.000185,3]
[400523220,1767696644781,-203.16,0.00017988,3]
[400523221,1767696644790,-339.97181386,0.000185,3]
[400523222,1767696645568,-911.75,0.000185,3]
[400523235,1767696646263,-9309.87724975,0.000185,3]
[400523236,1767696646273,-151.0,0.00018525,2]
[400523237,1767696646282,-151.0,0.00018525,2]
[400523238,1767696646292,-151.0,0.00018525,2]
[400523239,1767696646302,-250.0,0.00018525,2]
[400523240,1767696646311,-500.0,0.00018525,2]
[400523241,1767696646320,-151.0,0.00018525,2]
[400523242,1767696646330,-500.0,0.00018525,2]
[400523243,1767696646339,-151.0,0.00018525,2]
[400523244,1767696646349,-250.0,0.00018525,2]
[400523245,1767696646358,-500.0,0.00018525,2]
[400523246,1767696646368,-166.69416099,0.00018525,2]
[400523247,1767696646377,-250.0,0.00018525,2]
[400523248,1767696646386,-500.0,0.00018525,2]
[400523249,1767696646396,-250.0,0.00018525,2]
[400523250,1767696646405,-500.0,0.00018525,2]
[400523251,1767696646415,-250.0,0.00018525,2]
[400523252,1767696646425,-500.0,0.00018525,2]
[400523253,1767696646434,-250.0,0.00018525,2]
[400523254,1767696646444,-293.54832177,0.00018525,2]
[400523255,1767696646459,-206.45167823,0.00018525,2]
[400523256,1767696646469,-500.0,0.00018525,2]
[400523257,1767696646478,-250.0,0.00018525,2]
[400523258,1767696646487,-255.24985543,0.00018525,2]
[400523259,1767696646496,-500.0,0.00018525,2]
[400523260,1767696646505,-500.0,0.00018525,2]
[400523261,1767696646514,-500.0,0.00018525,2]
[400523262,1767696646524,-500.0,0.00018525,2]
[400523263,1767696646533,-500.0,0.00018525,2]
[400523264,1767696646542,-500.0,0.00018525,2]
[400523265,1767696646551,-500.0,0.00018525,2]
[400523266,1767696646560,-500.0,0.00018525,2]
[400523267,1767696646570,-500.0,0.00018525,2]
[400523268,1767696646704,-2398.4119403,0.00018525,2]
[400523269,1767696646715,-304.08381326,0.00018525,2]
[400523270,1767696646724,-496.47127164,0.00018525,2]
[400523271,1767696646733,-2755.33034983,0.00018525,2]
[400523272,1767696646744,-1654.29364488,0.00018525,2]
[400523275,1767697351704,2000.71,0.00030136,120]
[400523276,1767697480986,5000.0,0.0001,10]
[400523277,1767697503802,427.49717238,0.0001,10]
[400523423,1767697838550,-2565.86425829,9.698e-05,2]
[400523425,1767697838560,-5000.0,9.796e-05,2]
[400523427,1767697838569,-1655.17822984,9.895e-05,2]
[400523429,1767697838580,-352.0,9.994e-05,2]
[400523431,1767697838589,-254.62694458,0.00010046,2]
[400523433,1767697838599,-170.0,0.00010448,2]
[400523435,1767697838608,-300.0,0.00010448,2]
[400523437,1767697838617,-300.0,0.00010448,2]
[400523439,1767697838627,-300.0,0.00010957,2]
[400523441,1767697838636,-500.0,0.00010958,2]
[400523443,1767697838646,-500.0,0.00010958,2]
[400523445,1767697838655,-500.0,0.00010958,2]
[400523447,1767697838665,-500.0,0.00010958,2]
[400523449,1767697838674,-500.0,0.00010958,2]
[400523451,1767697838683,-500.0,0.00010958,2]
[400523453,1767697838693,-500.0,0.00010958,2]
[400523455,1767697838702,-500.0,0.00010958,2]
[400523457,1767697838711,-500.0,0.00010958,2]
[400523459,1767697838721,-500.0,0.00010958,2]
[400523462,1767697838734,-500.0,0.00010958,2]
[400523464,1767697838744,-500.0,0.00010958,2]
[400523466,1767697838753,-500.0,0.00010958,2]
[400523467,1767697838763,-500.0,0.00010958,2]
[400523469,1767697838772,-500.0,0.00010958,2]
[400523472,1767697838782,-500.0,0.00010958,2]
[400523474,1767697838791,-500.0,0.00010958,2]
[400523476,1767697838801,-500.0,0.00010958,2]
[400523478,1767697838810,-553.8674184,0.00010958,2]
[400523480,1767697838820,-500.0,0.00010958,2]
[400523482,1767697838830,-500.0,0.00010958,2]
[400523484,1767697838839,-500.0,0.00010958,2]
[400523486,1767697838849,-500.0,0.00010958,2]
[400523487,1767697838859,-500.0,0.00010958,2]
[400523490,1767697838869,-500.0,0.00010958,2]
[400523491,1767697838879,-293.73903037,0.00010958,2]
[400523494,1767697838889,-500.0,0.00010958,2]
[400523495,1767697838899,-500.0,0.00010958,2]
[400523498,1767697838910,-500.0,0.00010958,2]
[400523500,1767697838920,-500.0,0.00010958,2]
[400523502,1767697838930,-500.0,0.00010958,2]
[400523503,1767697838940,-438.20240166,0.00010958,2]
[400523506,1767697838950,-500.0,0.00010958,2]
[400523508,1767697838960,-500.0,0.00010958,2]
[400523509,1767697838970,-500.0,0.00010958,2]
[400523511,1767697838980,-549.26351804,0.00010958,2]
[400523513,1767697838990,-500.0,0.00010958,2]
[400523515,1767697839000,-500.0,0.00010958,2]
[400523517,1767697839014,-500.0,0.00010958,2]
[400523519,1767697839024,-500.0,0.00010958,2]
[400523522,1767697839034,-500.0,0.00010958,2]
[400523524,1767697839044,-500.0,0.00010958,2]
[400523525,1767697839053,-500.0,0.00010958,2]
[400523527,1767697839063,-500.0,0.00010958,2]
[400523529,1767697839072,-500.0,0.00010958,2]
[400523531,1767697839082,-500.0,0.00010958,2]
[400523533,1767697839091,-500.0,0.00010958,2]
[400523535,1767697839101,-500.0,0.00010958,2]
[400523537,1767697839110,-500.0,0.00010958,2]
[400523540,1767697839120,-500.0,0.00010958,2]
[400523542,1767697839130,-500.0,0.00010958,2]
[400523544,1767697839141,-500.0,0.00010958,2]
[400523546,1767697839151,-500.0,0.00010958,2]
[400523548,1767697839160,-500.0,0.00010958,2]
[400523550,1767697839169,-500.0,0.00010958,2]
[400523551,1767697839178,-500.0,0.00010958,2]
[400523553,1767697839189,-500.0,0.00010958,2]
[400523555,1767697839198,-508.36395446,0.00010958,2]
[400523558,1767697839208,-500.0,0.00010958,2]
[400523559,1767697839217,-500.0,0.00010958,2]
[400523562,1767697839229,-500.0,0.00010958,2]
[400523563,1767697839238,-500.0,0.00010958,2]
[400523566,1767697839248,-500.0,0.00010958,2]
[400523567,1767697839259,-500.0,0.00010958,2]
[400523570,1767697839270,-500.0,0.00010958,2]
[400523571,1767697839279,-500.0,0.00010958,2]
[400523574,1767697839289,-500.0,0.00010958,2]
[400523576,1767697839301,-500.0,0.00010958,2]
[400523578,1767697839312,-500.0,0.00010958,2]
[400523580,1767697839322,-500.0,0.00010958,2]
[400523582,1767697839332,-500.0,0.00010958,2]
[400523584,1767697839341,-500.0,0.00010958,2]
[400523586,1767697839351,-500.0,0.00010958,2]
[400523588,1767697839359,-454.69346583,0.00010958,2]
[400523590,1767697839368,-564.686617,0.00010958,2]
[400523592,1767697839377,-500.0,0.00010958,2]
[400523594,1767697839386,-500.0,0.00010958,2]
[400523596,1767697839396,-500.0,0.00010958,2]
[400523598,1767697839405,-500.0,0.00010958,2]
[400523600,1767697839415,-500.0,0.00010958,2]
[400523602,1767697839428,-500.0,0.00010958,2]
[400523604,1767697839439,-500.0,0.00010958,2]
[400523606,1767697839449,-500.0,0.00010958,2]
[400523608,1767697839459,-500.0,0.00010958,2]
[400523610,1767697839469,-500.0,0.00010958,2]
[400523612,1767697839478,-500.0,0.00010958,2]
[400523614,1767697839488,-500.0,0.00010958,2]
[400523616,1767697839497,-575.27559019,0.00010958,2]
[400523618,1767697839506,-500.0,0.00010958,2]
[400523620,1767697839516,-500.0,0.00010958,2]
[400523622,1767697839525,-500.0,0.00010958,2]
[400523624,1767697839534,-500.0,0.00010958,2]
[400523626,1767697839543,-500.0,0.00010958,2]
[400523628,1767697839553,-500.0,0.00010958,2]
[400523630,1767697839562,-500.0,0.00010958,2]
[400523632,1767697839572,-500.0,0.00010958,2]
[400523634,1767697839581,-500.0,0.00010958,2]
[400523636,1767697839590,-500.0,0.00010958,2]
[400523638,1767697839599,-500.0,0.00010958,2]
[400523641,1767697839609,-500.0,0.00010958,2]
[400523643,1767697839618,-500.0,0.00010958,2]
[400523645,1767697839628,-500.0,0.00010958,2]
[400523647,1767697839637,-500.0,0.00010958,2]
[400523649,1767697839647,-302.94659486,0.00010958,2]
[400523650,1767697839656,-500.0,0.00010958,2]
[400523652,1767697839665,-182.89726674,0.00010958,2]
[400523654,1767697839675,-500.0,0.00010958,2]
[400523656,1767697839685,-500.0,0.00010958,2]
[400523658,1767697839694,-639.8422271,0.00010958,2]
[400523660,1767697839703,-500.0,0.00010958,2]
[400523663,1767697839713,-500.0,0.00010958,2]
[400523665,1767697839722,-500.0,0.00010958,2]
[400523667,1767697839731,-500.0,0.00010958,2]
[400523669,1767697839740,-500.0,0.00010958,2]
[400523671,1767697839749,-500.0,0.00010958,2]
[400523672,1767697839760,-500.0,0.00010958,2]
[400523674,1767697839771,-500.0,0.00010958,2]
[400523676,1767697839780,-500.0,0.00010958,2]
[400523679,1767697839790,-500.0,0.00010958,2]
[400523681,1767697839799,-500.0,0.00010958,2]
[400523683,1767697839809,-7915.336054,0.00010959,2]
[400523685,1767697839818,-165.819,0.00011176,2]
[400523687,1767697839827,-300.0,0.00011177,2]
[400523689,1767697839836,-300.0,0.00011177,2]
[400523691,1767697839845,-300.0,0.00011177,2]
[400523693,1767697839855,-300.0,0.00011177,2]
[400523695,1767697839864,-300.0,0.00011177,2]
[400523697,1767697839874,-300.0,0.00011177,2]
[400523699,1767697839883,-300.0,0.00011177,2]
[400523701,1767697839893,-300.0,0.00011177,2]
[400523703,1767697839902,-300.0,0.00011177,2]
[400523705,1767697839914,-300.0,0.00011177,2]
[400523707,1767697839923,-300.0,0.00011177,2]
[400523709,1767697839932,-300.0,0.00011177,2]
[400523711,1767697839941,-300.0,0.00011177,2]
[400523713,1767697839950,-300.0,0.00011177,2]
[400523715,1767697839959,-300.0,0.00011177,2]
[400523717,1767697839968,-500.0,0.00011232,2]
[400523719,1767697839977,-151.0,0.000114,2]
[400523720,1767697839986,-420.0,0.00011488,2]
[400523721,1767697839995,-420.0,0.00011488,2]
[400523722,1767697840005,-151.0,0.000115,2]
[400523723,1767697840014,-291.78649388,0.00011506,2]
[400523725,1767697840023,-151.0,0.000116,2]
[400523727,1767697840032,-151.0,0.000117,2]
[400523728,1767697840041,-172.08,0.00011753,2]
[400523729,1767697840050,-151.0,0.000118,2]
[400523730,1767697840058,-151.0,0.000119,2]
[400523731,1767697840067,-500.0,0.00011918,2]
[400523732,1767697840076,-500.0,0.00011918,2]
[400523733,1767697840085,-153.33454002,0.00011918,2]
[400523734,1767697840094,-392.78,0.00011942,2]
[400523735,1767697840105,-500.0,0.0001195,2]
[400523736,1767697840114,-151.0,0.00012,2]
[400523737,1767697840123,-300.4597946,0.00012046,2]
[400523738,1767697840132,-545.28665735,0.00012055,2]
[400523739,1767697840141,-500.0,0.00012055,2]
[400523740,1767697840150,-500.0,0.00012087,2]
[400523743,1767697840159,-151.0,0.000121,2]
[400523746,1767697840169,-500.0,0.00012192,2]
[400523748,1767697840178,-151.0,0.000122,2]
[400523750,1767697840187,-151.0,0.000122,2]
[400523752,1767697840197,-151.0,0.000122,2]
[400523754,1767697840206,-151.0,0.000122,2]
[400523756,1767697840215,-500.0,0.00012224,2]
[400523758,1767697840225,-182.69934205,0.00012224,2]
[400523760,1767697840236,-1436.69,0.00012329,2]
[400523762,1767697840245,-1197.24,0.00012329,2]
[400523764,1767697840254,-997.7,0.00012329,2]
[400523766,1767697840265,-831.41,0.00012329,2]
[400523769,1767697840275,-692.85,0.00012329,2]
[400523771,1767697840284,-577.37,0.00012329,2]
[400523773,1767697840293,-481.14,0.00012329,2]
[400523774,1767697840302,-500.0,0.00012329,2]
[400523777,1767697840311,-500.0,0.00012361,2]
[400523778,1767697840320,-381.88170042,0.00012466,2]
[400523780,1767697840330,-600.0,0.00012468,2]
[400523782,1767697840339,-500.0,0.00012498,2]
[400523785,1767697840348,-206.5,0.00012537,2]
[400523787,1767697840357,-587.0,0.00012631,2]
[400523788,1767697840367,-500.0,0.00012635,2]
[400523790,1767697840376,-500.0,0.00012772,2]